bitfinex/quotes_SOLUSD_20250919
["timestamp","ask_amount","ask_price","bid_price","bid_amount"]
[1758314615671,0.1,238.21,238.2,14.26559401]
[1758314615848,2.40905534,238.21,238.2,14.26559401]
[1758314616388,0.1,238.21,238.2,14.26559401]
[1758314616677,2.40905534,238.21,238.2,14.26559401]
[1758314617973,0.1,238.21,238.2,18.46374682]
[1758314619156,0.1,238.21,238.2,50.56374682]
[1758314621679,0.1,238.21,238.2,18.46374682]
[1758314621872,0.1,238.21,238.2,50.56374682]
[1758314631682,33.10905534,238.24,238.21,13.59559401]
[1758314631869,33.10905534,238.24,238.23,13.59559401]
[1758314632189,31.2,238.24,238.23,13.59559401]
[1758314633562,31.2,238.24,238.23,45.69559401]
[1758314635279,34.03323526,238.24,238.23,45.69559401]
[1758314637694,2.83323526,238.24,238.2,0.66]
[1758314637903,1.47641114,238.23,238.21,13.59559401]
[1758314638072,1.47641114,238.23,238.19,13.59559401]
[1758314638272,31.2,238.22,238.21,13.59559401]
[1758314640977,4.19744795,238.24,238.21,13.59559401]
[1758314641179,31.2,238.22,238.21,14.31559401]
[1758314641691,31.2,238.22,238.21,13.59559401]
[1758314642072,31.2,238.22,238.21,14.31559401]
[1758314642572,4.19730412,238.25,238.21,13.59559401]
[1758314642773,7.62385329,238.25,238.22,32.08]
[1758314643606,7.03385329,238.25,238.22,32.08]
[1758314643978,31.2,238.22,238.21,13.59559401]
[1758314644188,31.2,238.22,238.21,45.67559401]
[1758314645003,4.19730412,238.25,238.21,46.39559401]
[1758314645195,31.2,238.22,238.21,46.39559401]
[1758314646001,35.39730412,238.25,238.21,46.39559401]
[1758314646201,2.83651381,238.24,238.21,46.39559401]
[1758314647910,7.03405957,238.24,238.21,46.39559401]
[1758314651611,2.83651381,238.24,238.22,0.72]
[1758314651820,2.83651381,238.24,238.23,45.67559401]
[1758314651994,2.83651381,238.26,238.23,46.39559401]
[1758314652198,2.83651381,238.26,238.24,0.72]
[1758314652704,31.2,238.25,238.24,14.31559401]
[1758314652914,34.03651381,238.25,238.24,14.31559401]
[1758314653507,2.83651381,238.25,238.24,14.31559401]
[1758314654705,31.2,238.25,238.24,14.31559401]
[1758314655005,34.03651381,238.25,238.24,14.31559401]
[1758314656215,2.83651381,238.25,238.24,14.31559401]
[1758314656390,2.83651381,238.25,238.24,26.94105958]
[1758314656810,2.83651381,238.25,238.24,14.31559401]
[1758314657603,2.83651381,238.25,238.24,26.94105958]
[1758314657818,2.83651381,238.25,238.24,14.31559401]
[1758314660295,2.83651381,238.25,238.24,46.39559401]
[1758314664223,34.03651381,238.25,238.24,46.39559401]
[1758314665122,2.83651381,238.25,238.24,50.59304196]
[1758314665314,31.2,238.26,238.25,13.59559401]
[1758314665624,34.03651381,238.26,238.25,14.29559401]
[1758314666006,2.83651381,238.26,238.25,17.41097366]
[1758314666331,31.3,238.27,238.25,17.41097366]
[1758314666496,2.83651381,238.26,238.25,26.21999698]
[1758314666699,2.83651381,238.26,238.25,61.41503376]
[1758314667224,2.83651381,238.26,238.25,62.11503376]
[1758314667430,2.83651381,238.26,238.25,49.49063079]
[1758314667724,2.83651381,238.26,238.25,62.11503376]
[1758314668334,31.3,238.27,238.25,62.11503376]
[1758314668507,31.3,238.27,238.26,17.41063079]
[1758314668828,34.13585791,238.27,238.26,17.41063079]
[1758314669606,34.13585791,238.27,238.26,30.03503376]
[1758314671326,31.3,238.27,238.26,30.03503376]
[1758314672005,31.3,238.27,238.26,29.33503376]
[1758314673034,0.1,238.27,238.26,29.33503376]
[1758314673226,31.3,238.27,238.26,29.33503376]
[1758314674833,0.1,238.27,238.26,29.33503376]
[1758314675229,31.3,238.27,238.26,29.33503376]
[1758314675420,31.3,238.27,238.26,16.71063079]
[1758314677634,0.1,238.27,238.26,17.41063079]
[1758314677834,31.3,238.27,238.26,17.41063079]
[1758314678429,31.3,238.27,238.26,14.29559401]
[1758314678739,31.3,238.27,238.26,17.40490781]
[1758314680834,0.69,238.27,238.26,16.70490781]
[1758314681042,4.29691946,238.27,238.26,13.59559401]
[1758314683144,0.1,238.27,238.26,14.29559401]
[1758314684657,0.1,238.27,238.26,53.68032328]
[1758314684834,0.1,238.27,238.26,66.30419502]
[1758314693254,0.1,238.27,238.26,78.71542643]
[1758314696352,0.1,238.27,238.26,42.43833083]
[1758314696529,0.1,238.27,238.26,74.51833083]
[1758314697150,0.1,238.27,238.26,78.71542643]
[1758314698660,0.1,238.27,238.26,78.70894453]
[1758314702941,0.1,238.27,238.26,74.51184893]
[1758314704156,0.1,238.27,238.26,62.10061752]
[1758314704351,0.1,238.27,238.26,48.77674578]
[1758314704828,0.1,238.27,238.26,48.75674578]
[1758314705028,0.1,238.27,238.26,49.43674578]
[1758314706357,0.1,238.27,238.26,48.75674578]
[1758314706560,0.1,238.27,238.26,49.43674578]
[1758314706855,0.1,238.27,238.26,48.75674578]
[1758314707052,0.1,238.27,238.26,16.69674578]
[1758314707237,4.88691946,238.27,238.26,3.10115177]
[1758314707439,31.2,238.25,238.24,45.65559401]
[1758314707652,34.09550945,238.25,238.24,16.70093976]
[1758314708034,33.50550945,238.25,238.24,16.70093976]
[1758314709047,37.70278122,238.25,238.24,16.70093976]
[1758314710961,41.1272561,238.25,238.24,13.59559401]
[1758314711160,41.1272561,238.25,238.2,13.59559401]
[1758314711480,2.30550945,238.22,238.21,16.70381281]
[1758314711646,2.30550945,238.22,238.21,17.38381281]
[1758314711831,2.83447488,238.24,238.22,13.59559401]
[1758314712034,31.2,238.25,238.23,3.10846047]
[1758314712256,31.2,238.25,238.24,0.68]
[1758314712762,33.60550945,238.27,238.24,0.68]
[1758314712969,2.83346117,238.26,238.24,0.68]
[1758314713162,2.83346161,238.26,238.24,0.68]
[1758314713765,31.2,238.23,238.22,14.27559401]
[1758314713946,31.2,238.23,238.22,17.38360526]
[1758314714458,31.2,238.24,238.22,17.38360526]
[1758314714650,33.50550945,238.24,238.23,16.70360526]
[1758314715168,2.30550945,238.24,238.23,16.70360526]
[1758314715349,33.50550945,238.24,238.23,13.59559401]
[1758314716562,2.30550945,238.24,238.23,14.27559401]
[1758314717147,2.30550945,238.24,238.23,17.37973773]
[1758314717355,2.30550945,238.24,238.23,16.69973773]
[1758314718169,2.30550945,238.24,238.23,17.37973773]
[1758314719270,33.50550945,238.24,238.23,17.37973773]
[1758314719844,2.30550945,238.24,238.23,17.37973773]
[1758314721965,2.30550945,238.24,238.23,16.69973773]
[1758314723452,33.50550945,238.24,238.23,17.37973773]
[1758314724150,2.30550945,238.24,238.23,17.37973773]
[1758314725171,2.30550945,238.24,238.23,16.69973773]
[1758314725545,7.0929574,238.24,238.23,13.59559401]
[1758314725750,7.0929574,238.24,238.2,13.59559401]
[1758314725970,4.19744795,238.24,238.2,0.72]
[1758314726152,4.19744795,238.24,238.22,13.59559401]
[1758314726349,4.19744795,238.24,238.21,0.72]
[1758314726561,4.19744795,238.24,238.22,13.59559401]
[1758314727284,2.30550945,238.23,238.22,13.59559401]
[1758314728764,6.50313359,238.23,238.19,0.72]
[1758314729066,31.2,238.21,238.2,3.10408994]
[1758314729264,31.2,238.21,238.2,3.82408994]
[1758314729452,31.2,238.22,238.2,3.82408994]
[1758314729654,31.2,238.22,238.21,17.41898582]
[1758314730061,33.50550945,238.24,238.22,13.59559401]
[1758314730273,33.50550945,238.24,238.23,17.41898582]
[1758314730480,2.30550945,238.24,238.23,17.41898582]
[1758314730878,31.2,238.25,238.24,13.59559401]
[1758314731061,0.1,238.27,238.24,17.41843641]
[1758314731388,0.1,238.27,238.26,13.59559401]
[1758314731590,0.1,238.27,238.26,16.69843641]
[1758314731762,0.1,238.27,238.26,17.41843641]
[1758314732558,0.1,238.27,238.26,21.61553201]
[1758314732772,0.1,238.27,238.26,23.92104146]
[1758314733977,0.1,238.27,238.26,19.72394586]
[1758314734577,0.1,238.27,238.26,23.92104146]
[1758314735168,0.1,238.27,238.26,55.98104146]
[1758314741585,0.1,238.27,238.26,68.29657909]
[1758314752667,2.40550945,238.27,238.26,63.37948349]
[1758314753302,2.40550945,238.27,238.26,64.09948349]
[1758314753671,2.99550945,238.27,238.26,51.06394586]
[1758314753881,2.16604502,238.27,238.26,51.06394586]
[1758314754079,1.57604502,238.27,238.26,51.06394586]
[1758314754976,2.16604502,238.27,238.26,48.75843641]
[1758314755277,1.57604502,238.27,238.26,48.75843641]
[1758314756580,5.77296448,238.27,238.26,16.69843641]
[1758314756811,5.77296448,238.27,238.2,13.59559401]
[1758314756812,31.2,238.24,238.2,13.59559401]
[1758314756981,31.79,238.24,238.21,3.1044656]
[1758314757180,31.79,238.24,238.23,13.59559401]
[1758314757488,0.59,238.24,238.23,16.70005961]
[1758314757997,35.98744795,238.24,238.23,16.70005961]
[1758314758486,37.46349297,238.24,238.23,16.70005961]
[1758314760397,31.79,238.24,238.23,16.70005961]
[1758314760596,32.67604502,238.24,238.23,16.70005961]
[1758314761397,36.87349297,238.24,238.23,16.70005961]
[1758314761597,37.46349297,238.24,238.23,16.70005961]
[1758314761789,36.87349297,238.24,238.23,16.70005961]
[1758314762001,37.46349297,238.24,238.23,16.70005961]
[1758314762706,37.46349297,238.24,238.2,13.59559401]
[1758314762907,35.39744795,238.24,238.21,3.10913297]
[1758314763077,35.39744795,238.24,238.2,14.27559401]
[1758314763283,35.39744795,238.24,238.21,3.10941901]
[1758314763498,35.39744795,238.24,238.2,14.27559401]
[1758314763807,35.39744795,238.24,238.21,3.10956175]
[1758314763992,1.47604502,238.22,238.2,14.27559401]
[1758314764318,1.47604502,238.21,238.2,14.27559401]
[1758314764509,32.67604502,238.21,238.2,16.70491157]
[1758314764709,1.47604502,238.21,238.2,16.70491157]
[1758314765904,1.47604502,238.21,238.2,17.38491157]
[1758314766694,1.47604502,238.21,238.2,16.70491157]
[1758314767192,1.47604502,238.21,238.19,13.59559401]
[1758314767389,4.1978501,238.22,238.19,14.27559401]
[1758314767390,32.67604502,238.2,238.19,14.27559401]
[1758314768613,1.47604502,238.2,238.19,14.27559401]
[1758314771793,1.47604502,238.2,238.19,13.59559401]
[1758314771993,1.47604502,238.2,238.18,13.59559401]
[1758314772298,4.1980781,238.21,238.19,0.68]
[1758314773313,1.47604502,238.2,238.19,0.68]
[1758314774105,1.47604502,238.2,238.18,14.27559401]
[1758314774307,1.47604502,238.19,238.18,13.59559401]
[1758314774510,1.47604502,238.19,238.18,14.27559401]
[1758314778713,1.47604502,238.19,238.17,13.59559401]
[1758314778916,1.47604502,238.18,238.17,13.59559401]
[1758314779098,1.47604502,238.18,238.16,13.59559401]
[1758314779411,35.98830044,238.2,238.16,13.59559401]
[1758314779412,1.47604502,238.17,238.16,13.59559401]
[1758314781202,5.67472663,238.17,238.16,13.59559401]
[1758314781610,5.67472663,238.17,238.15,13.59559401]
[1758314781915,31.2,238.15,238.14,13.59559401]
[1758314782107,32.67604502,238.15,238.14,13.59559401]
[1758314782309,32.67604502,238.15,238.14,14.27559401]
[1758314782500,31.2,238.18,238.14,14.27559401]
[1758314782695,1.47604502,238.15,238.14,13.59559401]
[1758314783199,1.47604502,238.15,238.14,14.27559401]
[1758314783405,1.47604502,238.15,238.14,13.59559401]
[1758314787418,1.47604502,238.15,238.14,14.30559401]
[1758314794918,1.47604502,238.15,238.13,12.44320328]
[1758314794919,5.67507924,238.15,238.12,32.77]
[1758314795124,4.19903422,238.15,238.13,13.59559401]
[1758314795419,4.19903422,238.15,238.13,14.30559401]
[1758314796227,1.47604502,238.14,238.13,14.30559401]
[1758314797229,1.47604502,238.14,238.13,17.39804856]
[1758314798230,1.47604502,238.14,238.13,16.68804856]
[1758314799020,1.47604502,238.14,238.13,17.39804856]
[1758314799614,1.47604502,238.14,238.13,16.68804856]
[1758314800103,5.67525556,238.14,238.13,16.68804856]
[1758314801127,1.47604502,238.14,238.13,17.39804856]
[1758314801333,31.2,238.13,238.12,13.59559401]
[1758314801514,32.67604502,238.13,238.12,17.40244487]
[1758314803040,31.2,238.16,238.12,17.40244487]
[1758314803224,32.67604502,238.14,238.13,3.80685086]
[1758314804332,1.47604502,238.14,238.13,3.80685086]
[1758314805233,1.47604502,238.14,238.13,17.40244487]
[1758314805435,1.47604502,238.14,238.13,17.40391768]
[1758314805940,1.47604502,238.14,238.13,16.69391768]
[1758314806844,1.47604502,238.14,238.13,17.40391768]
[1758314807436,35.39889651,238.16,238.13,17.40391768]
[1758314807744,1.47604502,238.2,238.15,13.59559401]
[1758314808044,1.47604502,238.2,238.17,13.59559401]
[1758314808219,32.67604502,238.2,238.19,13.59559401]
[1758314808420,32.67604502,238.2,238.19,17.40391768]
[1758314808642,1.47604502,238.2,238.19,17.40391768]
[1758314808943,32.67604502,238.2,238.19,17.40391768]
[1758314809326,1.47604502,238.2,238.19,17.40391768]
[1758314809827,32.67604502,238.2,238.19,17.40391768]
[1758314810423,1.47604502,238.2,238.19,16.69391768]
[1758314812046,1.47604502,238.2,238.19,17.40391768]
[1758314812419,1.47604502,238.2,238.19,16.69391768]
[1758314813119,1.47604502,238.2,238.19,13.59559401]
[1758314813319,1.47604502,238.2,238.19,16.69493492]
[1758314813520,5.67419783,238.2,238.19,16.69493492]
[1758314815031,31.2,238.17,238.16,13.59559401]
[1758314815230,31.2,238.17,238.16,17.40523844]
[1758314815836,2.30774667,238.2,238.16,17.40523844]
[1758314816052,2.30774667,238.2,238.17,3.80964443]
[1758314816251,2.30774667,238.2,238.19,13.59559401]
[1758314816455,2.30774667,238.2,238.19,16.69523844]
[1758314816636,2.30774667,238.2,238.19,17.40523844]
[1758314827554,2.30774667,238.2,238.19,16.69523844]
[1758314827762,2.30774667,238.2,238.19,17.35523844]
[1758314828533,33.50774667,238.2,238.19,16.69523844]
[1758314828739,33.50774667,238.2,238.19,17.35523844]
[1758314830060,33.50774667,238.2,238.19,16.69523844]
[1758314830430,33.50774667,238.2,238.19,17.35523844]
[1758314830860,33.50774667,238.2,238.19,16.69523844]
[1758314831652,33.50774667,238.2,238.19,17.35523844]
[1758314832254,33.50774667,238.2,238.19,17.36714113]
[1758314838356,12.72918605,238.27,238.19,21.56547019]
[1758314838535,2.30774667,238.24,238.21,13.59559401]
[1758314838736,2.30774667,238.24,238.23,13.59559401]
[1758314839143,2.30774667,238.24,238.23,0.66]
[1758314839641,31.2,238.26,238.23,3.77024049]
[1758314839840,2.30774667,238.24,238.23,0.66]
[1758314840137,2.30774667,238.24,238.16,14.25559401]
[1758314840352,2.30774667,238.17,238.16,13.59559401]
[1758314840742,2.30774667,238.18,238.16,13.59559401]
[1758314841062,2.30774667,238.18,238.17,14.25559401]
[1758314841240,33.50774667,238.18,238.17,14.25559401]
[1758314841446,2.30774667,238.18,238.17,13.59559401]
[1758314841841,2.30774667,238.18,238.17,14.25559401]
[1758314844462,6.506252,238.18,238.17,13.59559401]
[1758314844841,7.096252,238.18,238.17,13.59559401]
[1758314845758,4.19850533,238.18,238.17,13.59559401]
[1758314845963,6.506252,238.18,238.17,13.59559401]
[1758314846580,7.096252,238.18,238.17,13.59559401]
[1758314847141,35.39903422,238.15,238.11,12.63078121]
[1758314847362,2.30774667,238.12,238.11,13.59559401]
[1758314847965,2.30774667,238.12,238.11,14.25559401]
[1758314849955,33.50774667,238.12,238.11,14.25559401]
[1758314852347,2.30774667,238.12,238.1,13.59559401]
[1758314852538,2.30774667,238.11,238.1,13.59559401]
[1758314852971,33.50774667,238.11,238.1,13.59559401]
[1758314853150,33.50774667,238.11,238.1,14.25559401]
[1758314853354,33.50774667,238.11,238.1,13.59559401]
[1758314853748,2.89774667,238.11,238.08,4.19941022]
[1758314853956,2.89774667,238.11,238.06,0.66]
[1758314853957,2.30774667,238.09,238.07,13.59559401]
[1758314854159,0.59,238.11,238.07,13.59559401]
[1758314854160,2.30774667,238.08,238.07,13.59559401]
[1758314854449,33.50774667,238.08,238.07,13.59559401]
[1758314855077,33.50774667,238.08,238.07,0.66]
[1758314856475,2.30774667,238.08,238.07,0.66]
[1758314859662,2.30774667,238.08,238.07,14.25559401]
[1758314860484,35.39992295,238.1,238.08,13.59559401]
[1758314860666,2.30774667,238.09,238.08,13.59559401]
[1758314861073,2.30774667,238.09,238.07,0.66]
[1758314862081,2.30774667,238.08,238.07,0.66]
[1758314868160,2.30774667,238.08,238.03,13.59559401]
[1758314868383,2.30774667,238.06,238.05,13.59559401]
[1758314868688,2.30774667,238.06,238.05,14.25559401]
[1758314875485,2.30774667,238.06,238.04,13.59559401]
[1758314875685,2.89774667,238.05,238.04,13.59559401]
[1758314875989,1.47940501,238.05,238.04,13.59559401]
[1758314878066,6.27020316,238.05,238.02,1.68862043]
[1758314878272,6.27020316,238.05,238.03,13.59559401]
[1758314878484,1.47940501,238.04,238.03,13.59559401]
[1758314879096,1.47940501,238.04,238.03,14.29559401]
[1758314881771,5.68037963,238.04,238.03,13.59559401]
[1758314881991,1.47940501,238.04,238.03,13.59559401]
[1758314884406,5.68037963,238.04,238.03,13.59559401]
[1758314884775,5.68037963,238.04,238.02,1.68862043]
[1758314884976,1.47940501,238.03,238.02,15.28421444]
[1758314885402,2.06940501,238.03,238.02,15.28421444]
[1758314885700,1.47940501,238.03,238.02,15.28421444]
[1758314886489,36.88055612,238.03,238.02,15.28421444]
[1758314887102,1.47940501,238.03,238.02,15.28421444]
[1758314888379,5.68055612,238.03,238.02,15.28421444]
[1758314891783,32.67940501,238.03,238.02,1.68862043]
[1758314892584,36.88055612,238.03,238.02,1.68862043]
[1758314894900,36.88055612,238.03,238.02,2.34862043]
[1758314896399,36.88055612,238.03,238.02,1.68862043]
[1758314896796,1.47940501,238.03,238.02,1.68862043]
[1758314897018,32.67940501,238.03,238.02,1.68862043]
[1758314898018,36.88055612,238.03,238.02,1.68862043]
[1758314898633,32.67940501,238.03,238.02,2.34862043]
[1758314900720,1.47940501,238.03,238.02,2.34862043]
[1758314900915,31.2,238.03,238.02,15.94421444]
[1758314901114,31.2,238.03,238.02,20.14554205]
[1758314901427,1.47940501,238.06,238.02,20.14554205]
[1758314901658,32.67940501,238.06,238.04,13.59559401]
[1758314901801,32.67940501,238.06,238.05,0.66]
[1758314902006,32.67940501,238.06,238.05,14.25559401]
[1758314902804,31.2,238.06,238.05,14.25559401]
[1758314903016,1.47940501,238.09,238.06,13.59559401]
[1758314903330,1.47940501,238.09,238.08,13.59559401]
[1758314903521,31.2,238.09,238.08,14.25559401]
[1758314903723,32.67940501,238.09,238.08,14.25559401]
[1758314908936,4.1997112,238.12,238.08,14.25559401]
[1758314909140,32.67940501,238.09,238.08,14.25559401]
[1758314911530,32.67940501,238.09,238.06,0.68]
[1758314911729,32.67940501,238.09,238.03,17.79674512]
[1758314912038,32.67940501,238.09,238.08,13.59559401]
[1758314913041,32.67940501,238.09,238.08,0.68]
[1758314913432,32.67940501,238.09,238.07,0.68]
[1758314914356,1.47940501,238.08,238.06,13.59559401]
[1758314914839,1.47940501,238.08,238.07,0.68]
[1758314915220,1.47940501,238.1,238.07,0.68]
[1758314916346,1.47940501,238.1,238.06,4.20051483]
[1758314916651,1.47940501,238.1,238.09,13.59559401]
[1758314917021,1.47940501,238.1,238.08,13.59559401]
[1758314917217,1.47940501,238.1,238.08,14.27559401]
[1758314918146,1.47940501,238.1,238.08,13.59559401]
[1758314918344,1.47940501,238.09,238.06,14.27559401]
[1758314918522,1.47940501,238.08,238.06,14.27559401]
[1758314918723,32.67940501,238.09,238.07,0.68]
[1758314919350,32.67940501,238.09,238.08,0.68]
[1758314919645,32.67940501,238.09,238.06,4.20052206]
[1758314919851,1.47940501,238.09,238.04,17.79644417]
[1758314920153,1.47940501,238.07,238.06,13.59559401]
[1758314920635,1.47940501,238.07,238.04,13.59559401]
[1758314920941,1.47940501,238.07,238.06,0.68]
[1758314929351,31.2,238.09,238.06,4.88062169]
[1758314929536,1.47940501,238.08,238.07,14.27559401]
[1758314932059,2.06940501,238.08,238.07,13.59559401]
[1758314932646,1.47940501,238.08,238.07,13.59559401]
[1758314935648,1.47940501,238.08,238.06,13.59559401]
[1758314935864,2.31043534,238.07,238.06,14.28559401]
[1758314937737,2.31043534,238.07,238.04,13.59559401]
[1758314938038,2.31043534,238.07,238.05,0.69]
[1758314938365,2.31043534,238.07,238.06,0.69]
[1758314940748,35.40012369,238.09,238.06,0.69]
[1758314940942,2.31043534,238.07,238.06,0.69]
[1758314941552,35.40012369,238.09,238.06,0.69]
[1758314941843,2.31043534,238.07,238.06,0.69]
[1758314942764,33.51043534,238.07,238.06,0.69]
[1758314942960,2.31043534,238.07,238.06,0.69]
[1758314948137,5.1472285,238.07,238.06,0.69]
[1758314948350,2.31043534,238.07,238.06,0.69]
[1758314948550,5.1472285,238.07,238.06,0.69]
[1758314948853,2.31043534,238.07,238.06,0.69]
[1758314949054,5.1472285,238.07,238.06,0.69]
[1758314949360,2.31043534,238.07,238.06,0.69]
[1758314949543,5.1472285,238.07,238.06,0.69]
[1758314949741,2.31043534,238.07,238.06,0.69]
[1758314949955,5.1472285,238.07,238.06,0.69]
[1758314950166,2.31043534,238.07,238.06,0.69]
[1758314950353,5.1472285,238.07,238.06,0.69]
[1758314950668,2.83679316,238.08,238.07,13.59559401]
[1758314950877,5.1472285,238.08,238.07,13.59559401]
[1758314952769,31.2,238.06,238.05,13.59559401]
[1758314953370,34.03832329,238.06,238.05,0.66]
[1758314956849,5.73875863,238.06,238.03,13.59559401]
[1758314957068,2.31043534,238.04,238.03,13.59559401]
[1758314957276,2.31043534,238.04,238.03,14.25559401]
[1758314957970,5.14886431,238.04,238.03,13.59559401]
[1758314958174,2.31043534,238.04,238.03,13.59559401]
[1758314958476,5.73886431,238.04,238.03,13.59559401]
[1758314958773,9.93983893,238.04,238.02,1.68862043]
[1758314958948,5.73886431,238.03,238.02,1.68862043]
[1758314959950,9.94001542,238.03,238.02,1.68862043]
[1758314960154,9.35001542,238.03,238.02,1.68862043]
[1758314961264,36.34886431,238.03,238.02,2.34862043]
[1758314961961,36.34886431,238.03,238.02,15.94421444]
[1758314962872,36.34886431,238.03,238.02,15.28421444]
[1758314963260,33.51043534,238.03,238.02,15.28421444]
[1758314963660,36.34506062,238.03,238.02,15.28421444]
[1758314963871,33.51043534,238.03,238.02,15.28421444]
[1758314965268,36.34459404,238.03,238.02,15.28421444]
[1758314965471,33.51043534,238.03,238.02,15.28421444]
[1758314968356,31.2,238.03,238.02,15.28421444]
[1758314968553,33.51043534,238.03,238.02,15.97421444]
[1758314968968,33.51043534,238.03,238.02,15.28421444]
[1758314969476,41.99510904,238.03,238.02,1.68862043]
[1758314969658,44.30554438,238.03,238.01,0.1]
[1758314969853,7.45439327,238.02,237.99,0.2]
[1758314970095,4.62087068,238.0,237.99,0.2]
[1758314970389,39.51439327,238.0,237.99,0.2]
[1758314970585,40.10439327,238.0,237.99,0.2]
[1758314971282,45.9918105,238.0,237.99,0.2]
[1758314971665,31.2,237.98,237.97,0.2]
[1758314971880,68.40395793,237.98,237.97,0.2]
[1758314972082,2.31043534,237.97,237.94,0.2]
[1758314972269,2.31043534,237.96,237.94,0.2]
[1758314972479,37.93395793,237.96,237.94,0.2]
[1758314972864,37.93395793,237.96,237.9,0.2]
[1758314972865,31.2,237.93,237.9,0.2]
[1758314973059,5.14395793,237.92,237.9,0.2]
[1758314973394,6.51370548,237.91,237.9,0.2]
[1758314973559,38.71370548,237.91,237.9,0.2]
[1758314973762,42.13722807,237.91,237.9,0.2]
[1758314974193,9.93722807,237.91,237.9,0.2]
[1758314974368,2.83352259,237.91,237.9,0.2]
[1758314974578,5.14395793,237.91,237.9,0.2]
[1758314974887,37.34395793,237.91,237.9,0.2]
[1758314975287,34.51043534,237.91,237.9,0.2]
[1758314976475,2.31043534,237.91,237.9,0.2]
[1758314976697,34.55043534,237.91,237.9,0.2]
[1758314978200,35.14043534,237.91,237.9,0.2]
[1758314978700,35.14043534,237.91,237.89,0.2]
[1758314978701,4.20344682,237.9,237.89,0.2]
[1758314978898,31.2,237.89,237.88,0.2]
[1758314979110,66.86623433,237.89,237.88,0.2]
[1758314979263,64.05,237.89,237.88,0.2]
[1758314979467,65.7365895,237.89,237.88,0.2]
[1758314979699,68.55114967,237.89,237.88,0.2]
[1758314980077,65.7365895,237.89,237.88,0.2]
[1758314980469,4.20380023,237.88,237.87,0.2]
[1758314980704,41.06467091,237.88,237.87,0.2]
[1758314980875,41.65467091,237.88,237.87,0.2]
[1758314981076,41.06467091,237.88,237.87,0.2]
[1758314981407,35.40380023,237.88,237.87,0.2]
[1758314981731,71.66082508,237.88,237.87,0.2]
[1758314982874,73.97126042,237.88,237.87,0.2]
[1758314983077,73.97126042,237.88,237.83,0.2]
[1758314983078,31.2,237.85,237.83,0.2]
[1758314983397,31.2,237.82,237.77,14.28559401]
[1758314983597,65.79043534,237.82,237.75,0.89]
[1758314983782,69.1904121,237.82,237.75,0.2]
[1758314983988,33.51043534,237.79,237.75,0.2]
[1758314984304,65.89043534,237.79,237.75,0.2]
[1758314984475,2.31043534,237.76,237.75,0.2]
[1758314984880,38.91635727,237.76,237.75,0.2]
[1758314985290,40.60387177,237.76,237.75,0.2]
[1758314986406,31.2,237.73,237.71,0.1]
[1758314986699,31.2,237.69,237.67,0.69]
[1758314986897,37.02087068,237.72,237.61,0.1]
[1758314986898,33.51043534,237.68,237.61,0.1]
[1758314987102,31.2,237.68,237.64,0.69]
[1758314987397,63.6,237.68,237.65,0.69]
[1758314987900,4.20751462,237.67,237.65,0.69]
[1758314988075,2.31043534,237.66,237.65,0.69]
[1758314988491,31.2,237.64,237.61,0.1]
[1758314988695,33.51043534,237.64,237.62,13.59559401]
[1758314989089,2.31043534,237.64,237.63,14.28559401]
[1758314991289,2.31043534,237.64,237.61,13.69559401]
[1758314991482,2.31043534,237.62,237.61,13.69559401]
[1758314991685,2.31043534,237.62,237.61,14.38559401]
[1758314992095,2.31043534,237.63,237.61,14.38559401]
[1758314992302,2.31043534,237.63,237.62,14.28559401]
[1758314993313,2.31043534,237.64,237.62,14.28559401]
[1758314993495,2.31043534,237.64,237.63,0.69]
[1758314995408,2.31043534,237.66,237.64,13.59559401]
[1758314995608,2.31043534,237.66,237.65,14.30559401]
[1758314995809,1.48364559,237.66,237.65,14.30559401]
[1758314998010,1.48364559,237.71,237.66,13.59559401]
[1758314998306,1.48364559,237.71,237.65,4.91786871]
[1758314998307,1.48364559,237.71,237.68,13.59559401]
[1758314998507,1.48364559,237.71,237.69,0.71]
[1758314998685,1.48364559,237.71,237.7,0.71]
[1758315001693,2.78978224,237.73,237.7,0.71]
[1758315001899,1.48364559,237.71,237.7,0.71]
[1758315002097,1.48364559,237.71,237.68,13.59559401]
[1758315002300,1.48364559,237.69,237.67,13.59559401]
[1758315002511,1.48364559,237.69,237.67,14.31559401]
[1758315002715,1.48364559,237.69,237.68,0.72]
[1758315003014,1.48364559,237.69,237.68,14.31559401]
[1758315003706,1.48364559,237.7,237.69,13.59559401]
[1758315003908,1.48364559,237.7,237.68,13.59559401]
[1758315004111,1.48364559,237.7,237.68,14.31559401]